[Event "Titled Tuesday Blitz October 31 Early 2023"]
[White "Semenova, Alina"]
[Black "Panda Sambit"]
[WhiteFideId "24113875"]
[BlackFideId "25091794"]
[WhiteElo "2169"]
[BlackElo "2479"]
[Result "0-1"]
[Round "8"]
[TimeControl "180+1"]
[Date "2023.10.31"]
[WhiteClock "0:01:02"]
[BlackClock "0:00:12"]
[Board "111"]

1. b3 {[%clk 0:02:59]}  b6 {[%clk 0:02:56]} 2. Bb2 {[%clk 0:03:00]}  Bb7 {[%clk 0:02:53]} 3. e3 {[%clk 0:03:00]}  e6 {[%clk 0:02:52]} 4. Nf3 {[%clk 0:03:00]}  Nf6 {[%clk 0:02:52]} 5. Be2 {[%clk 0:03:00]}  Be7 {[%clk 0:02:53]} 6. O-O {[%clk 0:03:01]}  O-O {[%clk 0:02:54]} 7. d4 {[%clk 0:03:01]}  d5 {[%clk 0:02:54]} 8. Nbd2 {[%clk 0:03:01]}  c5 {[%clk 0:02:55]} 9. c4 {[%clk 0:03:01]}  Nc6 {[%clk 0:02:55]} 10. Rc1 {[%clk 0:03:01]}  Rc8 {[%clk 0:02:53]} 11. cxd5 {[%clk 0:02:55]}  Nxd5 {[%clk 0:02:52]} 12. Nc4 {[%clk 0:02:53]}  Bf6 {[%clk 0:02:50]} 13. Nce5 {[%clk 0:02:46]}  cxd4 {[%clk 0:02:49]} 14. Nxc6 {[%clk 0:02:45]}  Bxc6 {[%clk 0:02:47]} 15. Bxd4 {[%clk 0:02:44]}  Bb7 {[%clk 0:02:42]} 16. Qd2 {[%clk 0:02:39]}  Qe7 {[%clk 0:02:40]} 17. Bxf6 {[%clk 0:02:28]}  Qxf6 {[%clk 0:02:37]} 18. Qd4 {[%clk 0:02:28]}  Qxd4 {[%clk 0:02:32]} 19. Nxd4 {[%clk 0:02:29]}  Nc3 {[%clk 0:02:33]} 20. Bc4 {[%clk 0:02:25]}  e5 {[%clk 0:02:26]} 21. Nf5 {[%clk 0:02:22]}  Rxc4 {[%clk 0:02:14]} 22. bxc4 {[%clk 0:02:20]}  Ne2+ {[%clk 0:02:14]} 23. Kh1 {[%clk 0:02:19]}  Nxc1 {[%clk 0:02:15]} 24. Rxc1 {[%clk 0:02:20]}  Rd8 {[%clk 0:02:06]} 25. Kg1 {[%clk 0:02:15]}  g6 {[%clk 0:02:04]} 26. Ng3 {[%clk 0:02:04]}  Rd2 {[%clk 0:02:00]} 27. c5 {[%clk 0:02:04]}  bxc5 {[%clk 0:01:59]} 28. f3 {[%clk 0:02:02]}  Rxa2 {[%clk 0:01:44]} 29. Rxc5 {[%clk 0:02:01]}  a5 {[%clk 0:01:43]} 30. Rxe5 {[%clk 0:02:01]}  a4 {[%clk 0:01:43]} 31. Ne4 {[%clk 0:01:58]}  a3 {[%clk 0:01:40]} 32. Nd6 {[%clk 0:01:42]}  Rb2 {[%clk 0:01:21]} 33. Nxb7 {[%clk 0:01:39]}  a2 {[%clk 0:01:19]} 34. Ra5 {[%clk 0:01:38]}  Rb1+ {[%clk 0:01:19]} 35. Kf2 {[%clk 0:01:39]}  a1=Q {[%clk 0:01:20]} 36. Rxa1 {[%clk 0:01:39]}  Rxa1 {[%clk 0:01:21]} 37. Nc5 {[%clk 0:01:39]}  h5 {[%clk 0:01:19]} 38. h4 {[%clk 0:01:38]}  Kg7 {[%clk 0:01:18]} 39. Kg3 {[%clk 0:01:38]}  Kf6 {[%clk 0:01:17]} 40. Kf4 {[%clk 0:01:38]}  Rc1 {[%clk 0:01:15]} 41. Nd3 {[%clk 0:01:36]}  Rc2 {[%clk 0:01:14]} 42. g3 {[%clk 0:01:36]}  Ke6 {[%clk 0:01:12]} 43. e4 {[%clk 0:01:33]}  f6 {[%clk 0:01:09]} 44. Nb4 {[%clk 0:01:31]}  Rc4 {[%clk 0:01:01]} 45. Nd3 {[%clk 0:01:28]}  Rd4 {[%clk 0:00:53]} 46. Nf2 {[%clk 0:01:27]}  Ra4 {[%clk 0:00:48]} 47. g4 {[%clk 0:01:26]}  Ra5 {[%clk 0:00:41]} 48. Nd3 {[%clk 0:01:23]}  g5+ {[%clk 0:00:40]} 49. Kg3 {[%clk 0:01:19]}  Ra3 {[%clk 0:00:31]} 50. Nf2 {[%clk 0:01:18]}  gxh4+ {[%clk 0:00:29]} 51. Kf4 {[%clk 0:01:12]}  Ra2 {[%clk 0:00:22]} 52. Ke3 {[%clk 0:01:04]}  hxg4 {[%clk 0:00:16]} 53. fxg4 {[%clk 0:01:05]}  Ra3+ {[%clk 0:00:15]} 54. Kf4 {[%clk 0:01:04]}  h3 {[%clk 0:00:15]} 55. Nh1 {[%clk 0:01:05]}  Ra1 {[%clk 0:00:13]} 56. Nf2 {[%clk 0:01:02]}  h2 {[%clk 0:00:12]} 0-1


[Site "https://www.chess.com"]

[Event "Titled Tuesday Blitz October 31 Early 2023"]
[White "ssgm49"]
[Black "Deuterio010"]
[WhiteElo "1976"]
[BlackElo "2455"]
[Result "0-1"]
[Round "8"]
[TimeControl "180+1"]
[Date "2023.10.31"]
[WhiteClock "0:00:07"]
[BlackClock "0:01:28"]
[Board "112"]

1. Nf3 {[%clk 0:03:00]}  c5 {[%clk 0:03:00]} 2. c4 {[%clk 0:02:58]}  Nc6 {[%clk 0:02:57]} 3. Nc3 {[%clk 0:02:58]}  g6 {[%clk 0:02:55]} 4. d4 {[%clk 0:02:57]}  cxd4 {[%clk 0:02:54]} 5. Nxd4 {[%clk 0:02:58]}  Nf6 {[%clk 0:02:51]} 6. e4 {[%clk 0:02:54]}  d6 {[%clk 0:02:50]} 7. Be2 {[%clk 0:02:48]}  Nxd4 {[%clk 0:02:46]} 8. Qxd4 {[%clk 0:02:48]}  Bg7 {[%clk 0:02:47]} 9. f3 {[%clk 0:01:55]}  O-O {[%clk 0:02:45]} 10. Qd3 {[%clk 0:01:46]}  Be6 {[%clk 0:02:40]} 11. Be3 {[%clk 0:01:44]}  a5 {[%clk 0:02:36]} 12. b3 {[%clk 0:01:40]}  a4 {[%clk 0:02:33]} 13. O-O {[%clk 0:01:23]}  Nd7 {[%clk 0:02:22]} 14. Rac1 {[%clk 0:01:10]}  axb3 {[%clk 0:02:18]} 15. axb3 {[%clk 0:01:09]}  Nc5 {[%clk 0:02:19]} 16. Qc2 {[%clk 0:01:02]}  Na6 {[%clk 0:02:15]} 17. Nd5 {[%clk 0:00:57]}  Bxd5 {[%clk 0:02:08]} 18. exd5 {[%clk 0:00:23]}  Qa5 {[%clk 0:02:07]} 19. Bg5 {[%clk 0:00:17]}  Qc7 {[%clk 0:01:58]} 20. Qe4 {[%clk 0:00:16]}  Nc5 {[%clk 0:01:44]} 21. Qxe7 {[%clk 0:00:15]}  Qxe7 {[%clk 0:01:45]} 22. Bxe7 {[%clk 0:00:15]}  Rfe8 {[%clk 0:01:46]} 23. Bxd6 {[%clk 0:00:15]}  Nxb3 {[%clk 0:01:46]} 24. Rce1 {[%clk 0:00:13]}  Bc3 {[%clk 0:01:46]} 25. Rb1 {[%clk 0:00:13]}  Nd2 {[%clk 0:01:43]} 26. Rxb7 {[%clk 0:00:13]}  Rxe2 {[%clk 0:01:40]} 27. Rc1 {[%clk 0:00:12]}  Bd4+ {[%clk 0:01:37]} 28. Kh1 {[%clk 0:00:13]}  Ra2 {[%clk 0:01:34]} 29. Rb8+ {[%clk 0:00:11]}  Kg7 {[%clk 0:01:34]} 30. Bf8+ {[%clk 0:00:11]}  Kf6 {[%clk 0:01:34]} 31. c5 {[%clk 0:00:10]}  Nxf3 {[%clk 0:01:33]} 32. Rb6+ {[%clk 0:00:10]}  Kg5 {[%clk 0:01:32]} 33. Be7+ {[%clk 0:00:09]}  Rxe7 {[%clk 0:01:32]} 34. gxf3 {[%clk 0:00:09]}  Ree2 {[%clk 0:01:32]} 35. h4+ {[%clk 0:00:08]}  Kxh4 {[%clk 0:01:28]} 36. Rb4 {[%clk 0:00:07]}  Rh2# {[%clk 0:01:28]} 0-1


[Site "https://www.chess.com"]

[Event "Titled Tuesday Blitz October 31 Early 2023"]
[White "Harriott, Tyrell"]
[Black "Todorovic, Bojan"]
[WhiteFideId "2086484"]
[BlackFideId "917087"]
[WhiteElo "2315"]
[BlackElo "2421"]
[Result "0-1"]
[Round "8"]
[TimeControl "180+1"]
[Date "2023.10.31"]
[WhiteClock "0:00:07"]
[BlackClock "0:00:18"]
[Board "113"]

1. d4 {[%clk 0:02:52]}  Nf6 {[%clk 0:02:59]} 2. e3 {[%clk 0:02:48]}  g6 {[%clk 0:02:57]} 3. Bd3 {[%clk 0:02:48]}  Bg7 {[%clk 0:02:57]} 4. f4 {[%clk 0:02:47]}  c5 {[%clk 0:02:54]} 5. Nf3 {[%clk 0:02:46]}  d6 {[%clk 0:02:49]} 6. O-O {[%clk 0:02:43]}  b6 {[%clk 0:02:46]} 7. c3 {[%clk 0:02:42]}  Bb7 {[%clk 0:02:46]} 8. Nbd2 {[%clk 0:02:41]}  Nbd7 {[%clk 0:02:44]} 9. Qe2 {[%clk 0:02:40]}  O-O {[%clk 0:02:42]} 10. e4 {[%clk 0:02:37]}  cxd4 {[%clk 0:02:39]} 11. cxd4 {[%clk 0:02:36]}  e5 {[%clk 0:02:38]} 12. fxe5 {[%clk 0:02:35]}  dxe5 {[%clk 0:02:38]} 13. d5 {[%clk 0:02:13]}  Nc5 {[%clk 0:02:34]} 14. Bc4 {[%clk 0:01:52]}  Ne8 {[%clk 0:02:32]} 15. b4 {[%clk 0:01:49]}  Nd7 {[%clk 0:02:21]} 16. a3 {[%clk 0:01:46]}  Nd6 {[%clk 0:02:20]} 17. Bd3 {[%clk 0:01:45]}  a5 {[%clk 0:02:18]} 18. Bb2 {[%clk 0:01:43]}  Qe7 {[%clk 0:02:13]} 19. Rac1 {[%clk 0:01:41]}  axb4 {[%clk 0:02:11]} 20. axb4 {[%clk 0:01:40]}  Ra2 {[%clk 0:02:11]} 21. Nb1 {[%clk 0:01:33]}  f5 {[%clk 0:02:07]} 22. Nc3 {[%clk 0:01:16]}  fxe4 {[%clk 0:02:06]} 23. Nxe4 {[%clk 0:01:11]}  Nxe4 {[%clk 0:01:48]} 24. Bxe4 {[%clk 0:01:10]}  Qxb4 {[%clk 0:01:48]} 25. Rc2 {[%clk 0:01:03]}  Nc5 {[%clk 0:01:47]} 26. Ng5 {[%clk 0:00:42]}  Nxe4 {[%clk 0:01:06]} 27. Nxe4 {[%clk 0:00:19]}  Ba6 {[%clk 0:01:04]} 28. Rxf8+ {[%clk 0:00:18]}  Qxf8 {[%clk 0:01:02]} 29. Qe1 {[%clk 0:00:16]}  Bd3 {[%clk 0:00:55]} 30. Rd2 {[%clk 0:00:13]}  Bxe4 {[%clk 0:00:48]} 31. Qxe4 {[%clk 0:00:14]}  Qc5+ {[%clk 0:00:48]} 32. Kh1 {[%clk 0:00:12]}  Rxb2 {[%clk 0:00:46]} 33. Rd1 {[%clk 0:00:11]}  Qb4 {[%clk 0:00:34]} 34. Qd3 {[%clk 0:00:09]}  e4 {[%clk 0:00:33]} 35. Qf1 {[%clk 0:00:08]}  e3 {[%clk 0:00:30]} 36. Re1 {[%clk 0:00:08]}  e2 {[%clk 0:00:23]} 37. Rxe2 {[%clk 0:00:07]}  Rxe2 {[%clk 0:00:23]} 38. h3 {[%clk 0:00:04]}  Re1 {[%clk 0:00:22]} 39. Qg1 {[%clk 0:00:04]}  Rxg1+ {[%clk 0:00:21]} 40. Kxg1 {[%clk 0:00:04]}  Qd4+ {[%clk 0:00:21]} 41. Kh1 {[%clk 0:00:05]}  Qxd5 {[%clk 0:00:21]} 42. Kg1 {[%clk 0:00:05]}  b5 {[%clk 0:00:19]} 43. Kh1 {[%clk 0:00:05]}  b4 {[%clk 0:00:20]} 44. Kg1 {[%clk 0:00:05]}  b3 {[%clk 0:00:20]} 45. Kh1 {[%clk 0:00:06]}  b2 {[%clk 0:00:20]} 46. Kh2 {[%clk 0:00:07]}  b1=Q {[%clk 0:00:19]} 47. g3 {[%clk 0:00:07]}  Qd2# {[%clk 0:00:18]} 0-1


[Site "https://www.chess.com"]

[Event "Titled Tuesday Blitz October 31 Early 2023"]
[White "Shapiro, Daniel"]
[Black "Kahlert, Thomas"]
[WhiteFideId "2001780"]
[BlackFideId "4625242"]
[WhiteElo "2309"]
[BlackElo "2389"]
[Result "1-0"]
[Round "8"]
[TimeControl "180+1"]
[Date "2023.10.31"]
[WhiteClock "0:00:56"]
[BlackClock "0:01:14"]
[Board "114"]

1. d4 {[%clk 0:03:00]}  Nf6 {[%clk 0:02:59]} 2. c4 {[%clk 0:03:00]}  c5 {[%clk 0:02:58]} 3. d5 {[%clk 0:03:00]}  e5 {[%clk 0:02:58]} 4. Nc3 {[%clk 0:02:59]}  d6 {[%clk 0:02:58]} 5. e4 {[%clk 0:02:59]}  Be7 {[%clk 0:02:58]} 6. h3 {[%clk 0:02:58]}  O-O {[%clk 0:02:57]} 7. Nf3 {[%clk 0:02:59]}  Nbd7 {[%clk 0:02:56]} 8. Bd3 {[%clk 0:02:59]}  Ne8 {[%clk 0:02:56]} 9. g4 {[%clk 0:02:58]}  g6 {[%clk 0:02:55]} 10. Bh6 {[%clk 0:02:52]}  Ng7 {[%clk 0:02:55]} 11. Qd2 {[%clk 0:02:46]}  Kh8 {[%clk 0:02:54]} 12. O-O-O {[%clk 0:02:43]}  Nf6 {[%clk 0:02:54]} 13. Be3 {[%clk 0:02:31]}  Ng8 {[%clk 0:02:51]} 14. Rh2 {[%clk 0:02:19]}  f5 {[%clk 0:02:50]} 15. gxf5 {[%clk 0:02:10]}  gxf5 {[%clk 0:02:49]} 16. exf5 {[%clk 0:02:10]}  Bxf5 {[%clk 0:02:46]} 17. Ne4 {[%clk 0:01:52]}  Bg6 {[%clk 0:02:41]} 18. Nfg5 {[%clk 0:01:44]}  Qd7 {[%clk 0:02:19]} 19. Rg1 {[%clk 0:01:31]}  Nh5 {[%clk 0:02:10]} 20. Ne6 {[%clk 0:01:25]}  Rf7 {[%clk 0:02:03]} 21. Rhg2 {[%clk 0:01:16]}  Nf4 {[%clk 0:01:56]} 22. Bxf4 {[%clk 0:01:04]}  exf4 {[%clk 0:01:57]} 23. Qc3+ {[%clk 0:01:04]}  Nf6 {[%clk 0:01:51]} 24. Rxg6 {[%clk 0:01:02]}  hxg6 {[%clk 0:01:51]} 25. Rxg6 {[%clk 0:01:03]}  Kh7 {[%clk 0:01:19]} 26. N4g5+ {[%clk 0:00:59]}  Kh8 {[%clk 0:01:15]} 27. Nxf7+ {[%clk 0:00:59]}  Kh7 {[%clk 0:01:14]} 28. Neg5# {[%clk 0:00:56]} 1-0


[Site "https://www.chess.com"]

[Event "Titled Tuesday Blitz October 31 Early 2023"]
[White "LiadCuba"]
[Black "Fominykh, Maria"]
[BlackFideId "4142411"]
[WhiteElo "2353"]
[BlackElo "2278"]
[Result "1-0"]
[Round "8"]
[TimeControl "180+1"]
[Date "2023.10.31"]
[WhiteClock "0:00:42"]
[BlackClock "0:00:00"]
[Board "115"]

1. d4 {[%clk 0:03:00]}  Nf6 {[%clk 0:02:54]} 2. c4 {[%clk 0:03:00]}  e6 {[%clk 0:02:55]} 3. Nc3 {[%clk 0:03:00]}  d5 {[%clk 0:02:53]} 4. Bg5 {[%clk 0:02:59]}  Be7 {[%clk 0:02:52]} 5. Nf3 {[%clk 0:02:58]}  O-O {[%clk 0:02:50]} 6. e3 {[%clk 0:02:55]}  c6 {[%clk 0:02:48]} 7. Qc2 {[%clk 0:02:55]}  Nbd7 {[%clk 0:02:46]} 8. cxd5 {[%clk 0:02:51]}  exd5 {[%clk 0:02:46]} 9. Bd3 {[%clk 0:02:51]}  h6 {[%clk 0:02:44]} 10. Bh4 {[%clk 0:02:50]}  Re8 {[%clk 0:02:45]} 11. O-O {[%clk 0:02:50]}  Ne4 {[%clk 0:02:39]} 12. Bxe4 {[%clk 0:02:42]}  Bxh4 {[%clk 0:02:25]} 13. Bf5 {[%clk 0:02:42]}  Bf6 {[%clk 0:02:21]} 14. b4 {[%clk 0:02:41]}  Nb6 {[%clk 0:02:06]} 15. Bd3 {[%clk 0:02:41]}  Bg4 {[%clk 0:01:59]} 16. Nd2 {[%clk 0:02:39]}  a6 {[%clk 0:01:42]} 17. a4 {[%clk 0:02:38]}  Rc8 {[%clk 0:01:40]} 18. Rfc1 {[%clk 0:02:37]}  Qd6 {[%clk 0:01:37]} 19. Qb3 {[%clk 0:02:29]}  Bd8 {[%clk 0:01:30]} 20. Ne2 {[%clk 0:02:09]}  Bc7 {[%clk 0:01:21]} 21. Ng3 {[%clk 0:02:09]}  h5 {[%clk 0:01:17]} 22. h3 {[%clk 0:02:05]}  h4 {[%clk 0:01:16]} 23. Ngf1 {[%clk 0:02:05]}  Bd7 {[%clk 0:01:12]} 24. b5 {[%clk 0:02:00]}  axb5 {[%clk 0:01:09]} 25. axb5 {[%clk 0:02:00]}  Ra8 {[%clk 0:00:55]} 26. bxc6 {[%clk 0:02:00]}  bxc6 {[%clk 0:00:53]} 27. Nf3 {[%clk 0:01:57]}  Reb8 {[%clk 0:00:41]} 28. Rxa8 {[%clk 0:01:55]}  Nxa8 {[%clk 0:00:40]} 29. Qc2 {[%clk 0:01:46]}  Qf6 {[%clk 0:00:40]} 30. Rb1 {[%clk 0:01:27]}  Rxb1 {[%clk 0:00:39]} 31. Qxb1 {[%clk 0:01:28]}  Nb6 {[%clk 0:00:29]} 32. N1d2 {[%clk 0:01:16]}  g6 {[%clk 0:00:23]} 33. Qa2 {[%clk 0:01:11]}  Kg7 {[%clk 0:00:20]} 34. Qa7 {[%clk 0:01:09]}  Bd8 {[%clk 0:00:14]} 35. Ne5 {[%clk 0:01:05]}  Bf5 {[%clk 0:00:14]} 36. Ndf3 {[%clk 0:00:55]}  Be4 {[%clk 0:00:12]} 37. Bxe4 {[%clk 0:00:52]}  dxe4 {[%clk 0:00:12]} 38. Nxh4 {[%clk 0:00:49]}  Nc8 {[%clk 0:00:11]} 39. Qd7 {[%clk 0:00:48]}  Nd6 {[%clk 0:00:11]} 40. Nhxg6 {[%clk 0:00:45]}  Nb5 {[%clk 0:00:04]} 41. Nf4 {[%clk 0:00:42]}  Bb6 {[%clk 0:00:00]} 42. Nh5+ {[%clk 0:00:42]} 1-0


[Site "https://www.chess.com"]

[Event "Titled Tuesday Blitz October 31 Early 2023"]
[White "Buscar, Michael"]
[Black "De Souza, Cristiano Gomes"]
[WhiteFideId "2603616"]
[BlackFideId "2151758"]
[WhiteElo "2324"]
[BlackElo "2257"]
[Result "1-0"]
[Round "8"]
[TimeControl "180+1"]
[Date "2023.10.31"]
[WhiteClock "0:00:30"]
[BlackClock "0:00:05"]
[Board "116"]

1. e4 {[%clk 0:02:50]}  c5 {[%clk 0:02:59]} 2. Nf3 {[%clk 0:02:46]}  d6 {[%clk 0:02:59]} 3. Bb5+ {[%clk 0:02:46]}  Bd7 {[%clk 0:02:59]} 4. a4 {[%clk 0:02:45]}  Bc6 {[%clk 0:02:59]} 5. O-O {[%clk 0:02:41]}  Nf6 {[%clk 0:02:58]} 6. Re1 {[%clk 0:02:40]}  e5 {[%clk 0:02:57]} 7. d3 {[%clk 0:02:36]}  Be7 {[%clk 0:02:56]} 8. Na3 {[%clk 0:02:32]}  O-O {[%clk 0:02:55]} 9. Nc4 {[%clk 0:02:32]}  a6 {[%clk 0:02:55]} 10. Bxc6 {[%clk 0:02:31]}  Nxc6 {[%clk 0:02:56]} 11. c3 {[%clk 0:02:30]}  b5 {[%clk 0:02:55]} 12. axb5 {[%clk 0:02:25]}  axb5 {[%clk 0:02:55]} 13. Rxa8 {[%clk 0:02:24]}  Qxa8 {[%clk 0:02:55]} 14. Ne3 {[%clk 0:02:24]}  g6 {[%clk 0:02:52]} 15. h3 {[%clk 0:02:23]}  Rd8 {[%clk 0:02:50]} 16. Nh2 {[%clk 0:02:23]}  b4 {[%clk 0:02:47]} 17. Nhg4 {[%clk 0:02:21]}  Nxg4 {[%clk 0:02:46]} 18. hxg4 {[%clk 0:02:17]}  bxc3 {[%clk 0:02:44]} 19. bxc3 {[%clk 0:02:17]}  Qa1 {[%clk 0:02:41]} 20. Nd5 {[%clk 0:02:15]}  Bf8 {[%clk 0:02:25]} 21. Nf6+ {[%clk 0:02:05]}  Kh8 {[%clk 0:02:25]} 22. Qf3 {[%clk 0:01:58]}  Qxc3 {[%clk 0:02:19]} 23. Rf1 {[%clk 0:01:27]}  Bg7 {[%clk 0:02:14]} 24. Nd5 {[%clk 0:01:23]}  Qc2 {[%clk 0:02:07]} 25. Qxf7 {[%clk 0:01:22]}  Nd4 {[%clk 0:02:01]} 26. Bg5 {[%clk 0:01:18]}  Rf8 {[%clk 0:01:59]} 27. Qd7 {[%clk 0:01:14]}  Qxd3 {[%clk 0:01:58]} 28. Be7 {[%clk 0:01:04]}  Ne2+ {[%clk 0:01:43]} 29. Kh1 {[%clk 0:00:56]}  Ng3+ {[%clk 0:01:41]} 30. fxg3 {[%clk 0:00:54]}  Qxf1+ {[%clk 0:01:35]} 31. Kh2 {[%clk 0:00:54]}  Rf2 {[%clk 0:01:14]} 32. Qd8+ {[%clk 0:00:49]}  Bf8 {[%clk 0:01:13]} 33. Bf6+ {[%clk 0:00:49]}  Kg8 {[%clk 0:01:03]} 34. Ne3 {[%clk 0:00:36]}  Qe2 {[%clk 0:00:50]} 35. Bg5 {[%clk 0:00:36]}  c4 {[%clk 0:00:34]} 36. Qc8 {[%clk 0:00:36]}  Rf7 {[%clk 0:00:18]} 37. Qxc4 {[%clk 0:00:34]}  h6 {[%clk 0:00:17]} 38. Nd5 {[%clk 0:00:30]}  hxg5 {[%clk 0:00:05]} 39. Qxe2 {[%clk 0:00:30]} 1-0


[Site "https://www.chess.com"]

[Event "Titled Tuesday Blitz October 31 Early 2023"]
[White "DonCiao"]
[Black "Babarsik1977"]
[WhiteElo "2146"]
[BlackElo "2319"]
[Result "0-1"]
[Round "8"]
[TimeControl "180+1"]
[Date "2023.10.31"]
[WhiteClock "0:00:00"]
[BlackClock "0:00:19"]
[Board "117"]

1. c4 {[%clk 0:03:00]}  e6 {[%clk 0:03:00]} 2. g3 {[%clk 0:03:00]}  f5 {[%clk 0:03:00]} 3. Bg2 {[%clk 0:02:59]}  Nf6 {[%clk 0:03:00]} 4. Nf3 {[%clk 0:02:59]}  d5 {[%clk 0:03:01]} 5. d3 {[%clk 0:02:59]}  d4 {[%clk 0:03:00]} 6. O-O {[%clk 0:02:54]}  c5 {[%clk 0:03:01]} 7. b4 {[%clk 0:02:48]}  cxb4 {[%clk 0:03:00]} 8. a3 {[%clk 0:02:49]}  Nc6 {[%clk 0:02:58]} 9. axb4 {[%clk 0:02:48]}  Bxb4 {[%clk 0:02:58]} 10. Ba3 {[%clk 0:02:48]}  Bxa3 {[%clk 0:02:55]} 11. Nxa3 {[%clk 0:02:48]}  O-O {[%clk 0:02:55]} 12. Qb3 {[%clk 0:02:46]}  Qe7 {[%clk 0:02:47]} 13. Rfb1 {[%clk 0:02:45]}  Kh8 {[%clk 0:02:42]} 14. Nb5 {[%clk 0:02:27]}  e5 {[%clk 0:02:39]} 15. Qc2 {[%clk 0:01:43]}  a6 {[%clk 0:02:34]} 16. c5 {[%clk 0:01:40]}  Be6 {[%clk 0:02:04]} 17. Nd6 {[%clk 0:01:39]}  Rab8 {[%clk 0:02:05]} 18. Nd2 {[%clk 0:01:16]}  Bd5 {[%clk 0:01:53]} 19. Nxf5 {[%clk 0:01:04]}  Qe6 {[%clk 0:01:53]} 20. Nd6 {[%clk 0:00:59]}  Bxg2 {[%clk 0:01:49]} 21. Kxg2 {[%clk 0:01:00]}  Ng4 {[%clk 0:01:27]} 22. N2e4 {[%clk 0:00:59]}  Rxf2+ {[%clk 0:01:20]} 23. Nxf2 {[%clk 0:00:57]}  Ne3+ {[%clk 0:01:21]} 24. Kg1 {[%clk 0:00:48]}  Nxc2 {[%clk 0:01:21]} 25. Ra2 {[%clk 0:00:40]}  Ne3 {[%clk 0:01:17]} 26. Rab2 {[%clk 0:00:39]}  b5 {[%clk 0:00:56]} 27. Nfe4 {[%clk 0:00:25]}  Qh3 {[%clk 0:00:52]} 28. Kf2 {[%clk 0:00:14]}  Rf8+ {[%clk 0:00:42]} 29. Ke1 {[%clk 0:00:14]}  Rf1+ {[%clk 0:00:33]} 30. Kd2 {[%clk 0:00:14]}  Rxb1 {[%clk 0:00:27]} 31. Rxb1 {[%clk 0:00:14]}  h6 {[%clk 0:00:26]} 32. Nf7+ {[%clk 0:00:11]}  Kg8 {[%clk 0:00:25]} 33. Nfd6 {[%clk 0:00:07]}  Qxh2 {[%clk 0:00:23]} 34. Nxb5 {[%clk 0:00:04]}  axb5 {[%clk 0:00:22]} 35. Rxb5 {[%clk 0:00:05]}  Ne7 {[%clk 0:00:19]} 36. Rb8+ {[%clk 0:00:00]}  Kh7 {[%clk 0:00:19]} 0-1


[Site "https://www.chess.com"]

[Event "Titled Tuesday Blitz October 31 Early 2023"]
[White "Feliz Dotel, Dewar Bienvenido"]
[Black "Czerw, Dawid"]
[WhiteFideId "6402801"]
[BlackFideId "1145746"]
[WhiteElo "2155"]
[BlackElo "2493"]
[Result "0-1"]
[Round "8"]
[TimeControl "180+1"]
[Date "2023.10.31"]
[WhiteClock "0:00:00"]
[BlackClock "0:01:40"]
[Board "118"]

1. d4 {[%clk 0:02:59]}  Nf6 {[%clk 0:02:59]} 2. e3 {[%clk 0:02:59]}  c5 {[%clk 0:02:58]} 3. dxc5 {[%clk 0:02:59]}  e5 {[%clk 0:02:58]} 4. b4 {[%clk 0:02:53]}  a5 {[%clk 0:02:57]} 5. c3 {[%clk 0:02:48]}  axb4 {[%clk 0:02:58]} 6. cxb4 {[%clk 0:02:48]}  b6 {[%clk 0:02:58]} 7. Nf3 {[%clk 0:02:16]}  bxc5 {[%clk 0:02:58]} 8. Nxe5 {[%clk 0:02:14]}  cxb4 {[%clk 0:02:58]} 9. Be2 {[%clk 0:02:08]}  b3 {[%clk 0:02:57]} 10. Bb2 {[%clk 0:01:41]}  Rxa2 {[%clk 0:02:55]} 11. Nc4 {[%clk 0:01:32]}  d5 {[%clk 0:02:54]} 12. Qxb3 {[%clk 0:00:53]}  Rxa1 {[%clk 0:02:54]} 13. Bxa1 {[%clk 0:00:53]}  Nc6 {[%clk 0:02:52]} 14. Ncd2 {[%clk 0:00:42]}  Bd6 {[%clk 0:02:49]} 15. Nc3 {[%clk 0:00:25]}  O-O {[%clk 0:02:46]} 16. O-O {[%clk 0:00:20]}  d4 {[%clk 0:02:45]} 17. Nb5 {[%clk 0:00:18]}  dxe3 {[%clk 0:02:40]} 18. Qxe3 {[%clk 0:00:16]}  Re8 {[%clk 0:02:34]} 19. Qd3 {[%clk 0:00:16]}  Ba6 {[%clk 0:02:27]} 20. Qxd6 {[%clk 0:00:15]}  Qxd6 {[%clk 0:02:23]} 21. Nxd6 {[%clk 0:00:15]}  Rxe2 {[%clk 0:02:24]} 22. Bxf6 {[%clk 0:00:12]}  Rxd2 {[%clk 0:02:14]} 23. Ra1 {[%clk 0:00:12]}  Rxd6 {[%clk 0:02:06]} 24. Bh4 {[%clk 0:00:08]}  Ne5 {[%clk 0:01:59]} 25. Bg3 {[%clk 0:00:07]}  f6 {[%clk 0:01:59]} 26. h3 {[%clk 0:00:07]}  g5 {[%clk 0:01:54]} 27. f4 {[%clk 0:00:07]}  gxf4 {[%clk 0:01:54]} 28. Bxf4 {[%clk 0:00:07]}  Kf7 {[%clk 0:01:53]} 29. Ra5 {[%clk 0:00:07]}  Re6 {[%clk 0:01:48]} 30. Bg3 {[%clk 0:00:05]}  Kg6 {[%clk 0:01:46]} 31. Kh2 {[%clk 0:00:05]}  Bb7 {[%clk 0:01:46]} 32. Ra7 {[%clk 0:00:04]}  Rb6 {[%clk 0:01:44]} 33. Bf2 {[%clk 0:00:01]}  Rb2 {[%clk 0:01:43]} 34. Kg3 {[%clk 0:00:01]}  h5 {[%clk 0:01:42]} 35. h4 {[%clk 0:00:00]}  Ng4 {[%clk 0:01:40]} 0-1


[Site "https://www.chess.com"]